fUSD/lending_fUSD_20241015
["ID","MTS","AMOUNT","RATE_DAILY","PERIOD"]
[340285556,1729008635922,-156.88570515,0.0003874,30]
[340285557,1729008635964,-6911.70576646,0.000388,60]
[340285558,1729008636003,-473.99521125,0.0003888,120]
[340285559,1729008636043,-398.66718301,0.000389,30]
[340285560,1729008636087,-156.88570515,0.00038904,30]
[340285561,1729008636126,-900.0,0.00039,40]
[340285562,1729008636166,-154.25378728,0.00039,120]
[340285563,1729008636207,-33098.59813586,0.00039,120]
[340285564,1729008636249,-289.0,0.00039,120]
[340285565,1729008636289,-256.15980059,0.00039,120]
[340285566,1729008636332,-1438.61172229,0.00039,30]
[340285567,1729008636371,-381.39592112,0.00039,120]
[340285568,1729008636411,-156.88570515,0.00039096,30]
[340285569,1729008636451,-156.88570515,0.00039288,30]
[340285570,1729008636489,-572.29173269,0.000394,30]
[340285571,1729008636527,-203.96365685,0.0003944,120]
[340285572,1729008636568,-156.88570515,0.00039479,30]
[340285573,1729008636606,-11241.21195782,0.000395,90]
[340285574,1729008636645,-156.88570515,0.00039644,30]
[340285575,1729008636683,-156.88570515,0.00039836,30]
[340285576,1729008636723,-1818.02073003,0.00039988,36]
[340285577,1729008636903,-163.83800358,0.0003999,120]
[340285578,1729008636934,-50000.0,0.0004,40]
[340285579,1729008636961,-50000.0,0.0004,50]
[340285580,1729008636986,-167.81425013,0.0004,120]
[340285581,1729008637012,-1492.12984054,0.0004,30]
[340285582,1729008637036,-248.26931324,0.0004,30]
[340285583,1729008637066,-235.18587472,0.0004,120]
[340285584,1729008637091,-200.05300953,0.0004,120]
[340285585,1729008637117,-240.0343899,0.0004,30]
[340285586,1729008637143,-1409.11302622,0.0004,120]
[340285587,1729008637168,-262.15076144,0.0004,30]
[340285588,1729008637193,-166.76549823,0.0004,120]
[340285589,1729008637217,-1171.95945174,0.0004,120]
[340285590,1729008637241,-552.40119051,0.0004,60]
[340285591,1729008637267,-540.37353573,0.0004,120]
[340285592,1729008637291,-1406.40354053,0.0004,120]
[340285593,1729008637319,-1000.0,0.0004,33]
[340285594,1729008637345,-900.0,0.0004,41]
[340285595,1729008637370,-157.20032657,0.0004,120]
[340285596,1729008637396,-620.873263,0.0004,120]
[340285597,1729008637421,-519.75774089,0.0004,120]
[340285599,1729008637446,-2000.0,0.0004,30]
[340285600,1729008637471,-530.77262493,0.0004,120]
[340285601,1729008637496,-500.0,0.0004,120]
[340285602,1729008637521,-301.0,0.0004,30]
[340285603,1729008637547,-1624.06,0.0004,120]
[340285604,1729008637578,-3000.0,0.0004,80]
[340285605,1729008637603,-499.18929115,0.0004,120]
[340285606,1729008637628,-831.13173791,0.0004,120]
[340285607,1729008637654,-150.0,0.0004,120]
[340285608,1729008637679,-1280.0,0.0004,120]
[340285609,1729008637704,-156.88570515,0.00040027,30]
[340285610,1729008637729,-156.88570515,0.00040219,30]
[340285611,1729008637755,-1298.5,0.00040225,120]
[340285612,1729008637781,-2000.0,0.00040274,30]
[340285613,1729008637811,-156.88570515,0.00040384,30]
[340285614,1729008637836,-254.39544829,0.000405,120]
[340285615,1729008637863,-2000.0,0.00040548,30]
[340285616,1729008637891,-2000.0,0.00040822,30]
[340285617,1729008637915,-1134.43351,0.000409,30]
[340285618,1729008637942,-264.77516983,0.000409,120]
[340285619,1729008637970,-50000.0,0.00041,41]
[340285620,1729008637997,-50000.0,0.00041,34]
[340285621,1729008638023,-900.0,0.00041,42]
[340285622,1729008638047,-250.45632879,0.00041,30]
[340285623,1729008638075,-250.71,0.00041,120]
[340285624,1729008638100,-1590.29572517,0.00041,120]
[340285625,1729008638124,-188.36161398,0.00041,120]
[340285626,1729008638150,-150.999998,0.00041,120]
[340285627,1729008638176,-161.481911,0.00041,120]
[340285628,1729008638201,-464.80383298,0.00041095,120]
[340285629,1729008638225,-517.40070869,0.00041095,30]
[340285630,1729008638250,-2362.51,0.00041095,60]
[340285631,1729008638274,-2362.51,0.00041095,60]
[340285633,1729008638299,-2362.51,0.00041095,60]
[340285637,1729008638327,-2362.51,0.00041095,60]
[340285640,1729008638352,-2362.51,0.00041095,60]
[340285644,1729008638376,-2362.51,0.00041095,60]
[340285647,1729008638401,-2362.51,0.00041095,60]
[340285651,1729008638424,-2362.51,0.00041095,60]
[340285654,1729008638449,-2362.51,0.00041095,60]
[340285657,1729008638474,-2362.51,0.00041095,60]
[340285661,1729008638500,-2362.51,0.00041095,60]
[340285664,1729008638524,-2362.51,0.00041095,60]
[340285679,1729008638665,-2362.51,0.00041095,60]
[340285683,1729008638691,-2362.51,0.00041095,60]
[340285686,1729008638715,-2362.51,0.00041095,60]
[340285689,1729008638740,-2362.51,0.00041095,60]
[340285693,1729008638764,-2362.51,0.00041095,60]
[340285697,1729008638792,-2362.51,0.00041095,60]
[340285700,1729008638818,-2362.51,0.00041095,60]
[340285704,1729008638842,-2362.51,0.00041095,60]
[340285708,1729008638868,-2362.51,0.00041095,60]
[340285711,1729008638893,-2362.51,0.00041095,60]
[340285715,1729008638916,-2362.51,0.00041095,60]
[340285718,1729008638941,-2362.64231498,0.00041095,60]
[340285722,1729008638966,-1000.0,0.00041095,30]
[340285723,1729008638990,-1000.0,0.00041095,30]
[340285724,1729008639014,-1000.0,0.00041095,30]
[340285725,1729008639039,-425.46608349,0.00041095,30]
[340285728,1729008639067,-1500.0,0.00041095,120]
[340285732,1729008639092,-713.0828954,0.00041095,120]
[340285735,1729008639117,-277.15616902,0.00041096,120]
[340285739,1729008639141,-2000.0,0.00041096,30]
[340285743,1729008639166,-338.0,0.000411,60]
[340285746,1729008639190,-150.0,0.00041109,30]
[340285750,1729008639214,-151.42,0.00041123,30]
[340285753,1729008639239,-516.59763401,0.00041214,30]
[340285757,1729008639263,-199.79540904,0.00041214,30]
[340285761,1729008639287,-231.38773892,0.00041214,30]
[340285764,1729008639314,-150.0,0.00041343,120]
[340285768,1729008639339,-150.0,0.00041352,30]
[340285772,1729008639366,-516.59763401,0.00041475,30]
[340285775,1729008639390,-199.79540904,0.00041475,30]
[340285779,1729008639413,-231.38773892,0.00041475,30]
[340285780,1729008639437,-2623.207985,0.00041498,120]
[340285782,1729008639461,-150.0,0.000415,120]
[340285783,1729008639485,-150.0,0.000415,120]
[340285784,1729008639509,-150.0,0.000415,120]
[340285785,1729008639532,-230.74552,0.000416,120]
[340285786,1729008639559,-150.0,0.00041685,30]
[340285787,1729008639584,-516.59763401,0.00041737,30]
[340285788,1729008639608,-199.79540904,0.00041737,30]
[340285789,1729008639632,-231.38773892,0.00041737,30]
[340285791,1729008639656,-516.59763401,0.00041998,30]
[340285792,1729008639681,-199.79540904,0.00041998,30]
[340285793,1729008639705,-231.38773892,0.00041998,30]
[340285794,1729008639732,-50000.0,0.00042,42]
[340285795,1729008639759,-50000.0,0.00042,52]
[340285796,1729008639783,-203.34044816,0.00042,30]
[340285797,1729008639814,-900.0,0.00042,43]
[340285798,1729008639839,-500.0,0.00042,120]
[340285799,1729008639863,-4610.87386729,0.00042,60]
[340285800,1729008639889,-9660.11098399,0.00042,30]
[340285801,1729008639916,-520.24140731,0.00042,120]
[340285802,1729008639941,-235392.17165174,0.00042,30]
[340285803,1729008639967,-2300.0,0.00042,120]
[340285804,1729008639991,-150.0,0.00042033,30]
[340285805,1729008640016,-516.59763401,0.0004226,30]
[340285806,1729008640040,-199.79540904,0.0004226,30]
[340285807,1729008640063,-150.0,0.0004226,30]
[340285808,1729008640087,-231.38773892,0.0004226,30]
[340285809,1729008640111,-150.0,0.0004226,30]
[340285810,1729008640134,-150.0,0.0004226,30]
[340285811,1729008640158,-150.0,0.0004226,30]
[340285812,1729008640183,-150.0,0.0004226,30]
[340285813,1729008640208,-175.0,0.00042288,90]
[340285814,1729008640232,-2000.0,0.000425,30]
[340285815,1729008640256,-34005.64497461,0.000425,120]
[340285816,1729008640280,-516.59763401,0.00042522,30]
[340285817,1729008640307,-199.79540904,0.00042522,30]
[340285818,1729008640331,-231.38773892,0.00042522,30]
[340285819,1729008640355,-150.0,0.00042714,30]
[340285820,1729008640381,-516.59763401,0.00042783,30]
[340285821,1729008640406,-199.79540904,0.00042783,30]
[340285822,1729008640432,-231.38773892,0.00042783,30]
[340285823,1729008640457,-1046.23171892,0.000428,60]
[340285824,1729008640483,-372.18342745,0.000428,120]
[340285825,1729008640508,-1298.5,0.00042809,120]
[340285826,1729008640533,-150.0,0.00042835,30]
[340285827,1729008640560,-560.82368533,0.00042898,120]
[340285828,1729008640586,-560.84152561,0.00042898,90]
[340285829,1729008640611,-327.4482662,0.000429,30]
[340285830,1729008640636,-160.53896557,0.000429,30]
[340285831,1729008640661,-1180.52771367,0.000429,60]
[340285832,1729008640686,-394.43916904,0.000429,60]
[340285833,1729008640711,-953.16120541,0.000429,60]
[340285834,1729008640739,-50000.0,0.00043,43]
[340285835,1729008640767,-50000.0,0.00043,53]
[340285836,1729008640794,-626.96576164,0.00043,30]
[340285837,1729008640823,-900.0,0.00043,44]
[340285838,1729008640849,-264.73242581,0.00043,120]
[340285839,1729008640874,-1000.0,0.00043,30]
[340285840,1729008640899,-1241.74652599,0.00043,120]
[340285841,1729008640923,-1039.51548177,0.00043,120]
[340285842,1729008640947,-310.07334679,0.00043,120]
[340285843,1729008641107,-509.75034328,0.00043,30]
[340285844,1729008641133,-6963.07298282,0.00043,30]
[340285845,1729008641158,-185.89,0.00043014,120]
[340285846,1729008641186,-516.59763401,0.00043045,30]
[340285847,1729008641211,-199.79540904,0.00043045,30]
[340285848,1729008641237,-231.38773892,0.00043045,30]
[340285849,1729008641264,-166.03801,0.00043088,30]
[340285850,1729008641290,-150.0,0.00043123,30]
[340285851,1729008641318,-230.74552,0.000432,120]
[340285852,1729008641343,-150.0,0.000432,120]
[340285853,1729008641366,-150.0,0.000432,120]
[340285854,1729008641391,-317.99286421,0.000432,30]
[340285855,1729008641415,-150.0,0.000432,120]
[340285856,1729008641439,-166.03801,0.00043288,30]
[340285857,1729008641464,-516.59763401,0.00043306,30]
[340285858,1729008641487,-199.79540904,0.00043306,30]
[340285859,1729008641512,-231.38773892,0.00043306,30]
[340285860,1729008641536,-150.0,0.00043396,30]
[340285861,1729008641563,-150.0,0.00043411,30]
[340285862,1729008641588,-166.03801,0.00043488,30]
[340285863,1729008641612,-516.59763401,0.00043568,30]
[340285864,1729008641636,-199.79540904,0.00043568,30]
[340285865,1729008641660,-231.38773892,0.00043568,30]
[340285866,1729008641683,-166.03801,0.00043688,30]
[340285867,1729008641706,-158.60174972,0.000437,60]
[340285868,1729008641729,-685.12681205,0.000437,120]
[340285869,1729008641755,-1588.789,0.000438,60]
[340285870,1729008641780,-274.92178368,0.000438,120]
[340285871,1729008641811,-467.48710076,0.000438,30]
[340285872,1729008641837,-150.0,0.00043829,120]
[340285873,1729008641861,-516.59763401,0.00043829,30]
[340285874,1729008641888,-199.79540904,0.00043829,30]
[340285875,1729008641913,-231.38773892,0.00043829,30]
[340285876,1729008641937,-2247.94,0.00043835,120]
[340285889,1729008644109,150.0,0.00035949,120]
[340285890,1729008644193,-4039.0,0.0001127,2]
[340285891,1729008644203,-423.26084594,0.00011377,2]
[340285892,1729008644428,-170.89,0.00011381,2]
[340285893,1729008644452,-2000.0,0.00011391,2]
[340285894,1729008644462,-217.71,0.00011434,2]
[340285895,1729008644471,-345.89134097,0.00011434,2]
[340285896,1729008644482,-477.38865903,0.00011434,2]
[340285897,1729008644492,-499.99,0.00011434,2]
[340285898,1729008644502,-250.0,0.00011471,2]
[340285899,1729008644512,-250.0,0.00011494,2]
[340285900,1729008644521,-4609.95664912,0.00011494,2]
[340285901,1729008644533,-495.72833055,0.00011494,2]
[340285902,1729008644544,-4312.59456803,0.00011494,2]
[340285903,1729008644555,-328.01300429,0.00011494,2]
[340285904,1729008644568,-1314.94610177,0.00011494,2]
[340285905,1729008644579,-6178.9825058,0.00011494,2]
[340285906,1729008644591,-6659.77884044,0.00011494,2]
[340285907,1729008644600,-1946.45811491,0.00011494,2]
[340285908,1729008644611,-246.05188509,0.00011494,2]
[340285909,1729008644621,-2002.48,0.00011499,2]
[340285910,1729008644631,-193.92,0.00011524,2]
[340285911,1729008644640,-1500.0,0.00011527,2]
[340285912,1729008644651,-250.0,0.00011527,2]
[340285913,1729008644661,-150.0,0.00011581,2]
[340285914,1729008644670,-1000.0,0.0001164,2]
[340285915,1729008644681,-168.51,0.00011678,2]
[340285916,1729008644691,-530.44,0.00011687,2]
[340285917,1729008644701,-446.29,0.00011748,2]
[340285918,1729008644711,-152.85,0.00011799,2]
[340285919,1729008644721,-483.37,0.0001186,2]
[340285920,1729008644730,-430.43,0.00011874,2]
[340285921,1729008644739,-2187.88165964,0.00011888,2]
[340285922,1729008644751,-484.02009874,0.00011888,2]
[340285923,1729008644784,-794.77184693,0.00011888,2]
[340285924,1729008644801,-4670.58140367,0.00011888,2]
[340285925,1729008644814,-549.255392,0.00011888,2]
[340285926,1729008644826,-1160.73125044,0.00011888,2]
[340285927,1729008644909,-5057.62600055,0.00011888,2]
[340285928,1729008644920,-1983.13234886,0.00011888,2]
[340285929,1729008644931,-198.0,0.00012044,2]
[340285930,1729008644940,-178.8,0.00012177,2]
[340285931,1729008644950,-446.29,0.00012335,2]
[340285932,1729008644960,-167.0,0.00012445,2]
[340285933,1729008644969,-180.0,0.00012585,2]
[340285934,1729008644978,-2256.20224622,0.0001288,2]
[340285935,1729008644990,-491.53825178,0.0001288,2]
[340285936,1729008645000,-358.44071489,0.00012923,2]
[340285937,1729008645012,-87.84928511,0.00012923,2]
[340285938,1729008645022,-167.0,0.00012958,2]
[340285939,1729008645033,-73.58551499,0.00013095,2]
[340285940,1729008645045,-926.41448501,0.00013095,2]
[340285941,1729008645055,-430.43,0.00013358,2]
[340285942,1729008645067,-167.0,0.00013472,2]
[340285943,1729008645076,-446.29,0.0001351,2]
[340285944,1729008645086,-183.92,0.0001368,2]
[340285945,1729008645096,-500.0,0.00013698,2]
[340285946,1729008645106,-500.0,0.00013699,2]
[340285947,1729008645115,-200.0,0.00013699,2]
[340285948,1729008645124,-24835.0513501,0.000138,2]
[340285949,1729008645133,-502.19950538,0.00013873,2]
[340285950,1729008645143,-13515.75470893,0.000139,2]
[340285951,1729008645159,-6225.7093259,0.000139,2]
[340285952,1729008645171,-1452.9659822,0.000139,2]
[340285953,1729008645182,-14828.23885087,0.000139,2]
[340285954,1729008645192,-167.0,0.00013985,2]
[340285955,1729008645202,-193.11,0.00013988,2]
[340285956,1729008645211,-446.29,0.00014097,2]
[340285957,1729008645220,-483.37,0.00014123,2]
[340285958,1729008645230,-348.91,0.00014228,2]
[340285959,1729008645240,-152.95558118,0.00014246,3]
[340285960,1729008645251,-360.246502,0.00014246,3]
[340285961,1729008645263,-16.49564553,0.00014246,3]
[340285962,1729008645274,-167.0,0.00014499,2]
[340285963,1729008645283,-235.2181785,0.0001455,2]
[340285964,1729008645295,-764.7818215,0.0001455,2]
[340285965,1729008645304,-430.43,0.00014842,2]
[340285966,1729008645317,-676.0,0.00014986,2]
[340285967,1729008645326,-161.56026729,0.00015567,2]
[340285968,1729008645335,-183.92,0.0001596,2]
[340285969,1729008645344,-1000.0,0.00016006,2]
[340285970,1729008645354,-430.43,0.00016326,2]
[340285971,1729008645363,-530.44,0.00016362,2]
[340285972,1729008645373,-483.37,0.00016387,2]
[340285973,1729008645383,-156.37,0.00016438,2]
[340285974,1729008645393,-229.0,0.000169,2]
[340285975,1729008645402,-156.81,0.00017026,2]
[340285976,1729008645412,-156.81,0.00017037,2]
[340285977,1729008645421,-156.81,0.00017047,2]
[340285978,1729008645431,-156.81,0.00017058,2]
[340285980,1729008645442,-156.81,0.00017069,2]
[340285981,1729008645451,-156.81,0.00017079,2]
[340285982,1729008645460,-156.81,0.0001709,2]
[340285983,1729008645470,-156.81,0.00017101,2]
[340285984,1729008645481,-156.81,0.00017111,2]
[340285985,1729008645491,-229.0,0.0001732,2]
[340285986,1729008645501,-1000.0,0.00017461,2]
[340285987,1729008645510,-152.85,0.00017698,2]
[340285988,1729008645519,-229.0,0.0001775,2]
[340285989,1729008645529,-430.43,0.0001781,2]
[340285990,1729008645539,-229.0,0.0001817,2]
[340285991,1729008645548,-183.92,0.0001824,2]
[340285992,1729008645559,-229.0,0.000186,2]
[340285993,1729008645569,-483.37,0.00018651,2]
[340285994,1729008645579,-229.0,0.0001903,2]
[340285995,1729008645588,-229.0,0.0001945,2]
[340285996,1729008645598,-152.0,0.00019817,3]
[340285997,1729008645607,-229.0,0.0001988,2]
[340285998,1729008645617,-20000.0,0.0002,5]
[340285999,1729008645626,-156.778265,0.0002,5]
[340286000,1729008645635,-500.0,0.00020068,2]
[340286001,1729008645645,-600.0,0.00020068,2]
[340286002,1729008645654,-500.0,0.00020068,2]
[340286003,1729008645663,-6496.0,0.000202,3]
[340286004,1729008645672,-161.56026729,0.00020233,2]
[340286005,1729008645681,-229.0,0.0002031,2]
[340286006,1729008645691,-996.0,0.000205,3]
[340286007,1729008645700,-183.92,0.0002052,2]
[340286008,1729008645709,-229.0,0.0002073,2]
[340286009,1729008645718,-2354.029593,0.000208,2]
[340286010,1729008645727,-14699.72617948,0.0002088,2]
[340286011,1729008645736,-483.37,0.00020915,2]
[340286012,1729008645746,-202.0,0.0002116,2]
[340286013,1729008645755,-229.0,0.0002116,2]
[340286014,1729008645764,-600.0,0.00021164,2]
[340286015,1729008645773,-500.0,0.00021164,2]
[340286016,1729008645783,-152.0,0.00021514,4]
[340286017,1729008645794,-202.0,0.0002159,2]
[340286018,1729008645803,-229.0,0.0002159,2]
[340286019,1729008645815,-3728.69,0.00021917,2]
[340286020,1729008645825,-3728.69,0.00021917,2]
[340286021,1729008645834,-3728.69,0.00021917,2]
[340286022,1729008645843,-3728.69,0.00021917,2]
[340286023,1729008645852,-3728.69,0.00021917,2]
[340286024,1729008645861,-3728.69,0.00021917,2]
[340286025,1729008645872,-3728.69,0.00021917,2]
[340286026,1729008645883,-3728.69,0.00021917,2]
[340286027,1729008645893,-3728.69,0.00021917,2]
[340286028,1729008645903,-174.78,0.00021918,2]
[340286029,1729008645915,-449.0,0.00022003,2]
[340286030,1729008645926,-1247.585,0.00022003,2]
[340286031,1729008645937,-939.227,0.00022003,2]
[340286032,1729008645948,-556.329,0.00022003,2]
[340286033,1729008645960,-150.372,0.00022003,2]
[340286034,1729008645970,-1916.265,0.00022003,2]
[340286035,1729008645980,-3356.0,0.00022003,2]
[340286036,1729008645991,-870.456,0.00022003,2]
[340286037,1729008646001,-202.0,0.0002201,2]
[340286038,1729008646011,-229.0,0.0002201,2]
[340286040,1729008646021,-1150.0,0.00022171,2]
[340286041,1729008646031,-150.0,0.00022171,2]
[340286042,1729008646040,-5884.0,0.00022171,2]
[340286043,1729008646050,-13530.0,0.00022171,2]
[340286044,1729008646060,-600.0,0.0002226,2]
[340286045,1729008646069,-500.0,0.0002226,2]
[340286046,1729008646078,-500.0,0.0002226,2]
[340286047,1729008646087,-167.24,0.00022262,2]
[340286048,1729008646096,-202.0,0.0002244,2]
[340286049,1729008646106,-229.0,0.0002244,2]
[340286050,1729008646115,-3000.0,0.000225,2]
[340286051,1729008646125,-202.0,0.0002287,2]
[340286052,1729008646134,-229.0,0.0002287,2]
[340286053,1729008646144,-280.0,0.00023,2]
[340286054,1729008646153,-483.37,0.00023179,2]
[340286055,1729008646162,-152.0,0.00023211,5]
[340286056,1729008646171,-202.0,0.0002329,2]
[340286057,1729008646181,-229.0,0.0002329,2]
[340286058,1729008646191,-150.0,0.000233,2]
[340286059,1729008646200,-600.0,0.00023356,2]
[340286060,1729008646210,-500.0,0.00023356,2]
[340286061,1729008646219,-2110.0,0.000235,2]
[340286062,1729008646229,-187.983,0.00023571,2]
[340286063,1729008646239,-264.337,0.00023571,2]
[340286064,1729008646249,-299.828,0.00023571,2]
[340286065,1729008646259,-250.0,0.00023571,2]
[340286066,1729008646269,-200.0,0.00023571,2]
[340286067,1729008646279,-163.849,0.00023571,2]
[340286068,1729008646288,-286.694,0.00023571,2]
[340286069,1729008646298,-150.0,0.00023571,2]
[340286070,1729008646308,-150.0,0.00023571,2]
[340286071,1729008646322,-150.216,0.00023571,2]
[340286072,1729008646333,-561.293,0.00023571,2]
[340286073,1729008646342,-812.0,0.00023571,2]
[340286074,1729008646352,-202.0,0.0002372,2]
[340286075,1729008646361,-229.0,0.0002372,2]
[340286076,1729008646370,-2110.0,0.00024,2]
[340286077,1729008646379,-1000.0,0.00024,5]
[340286078,1729008646389,-1000.0,0.00024,5]
[340286079,1729008646398,-1000.0,0.00024,5]
[340286080,1729008646408,-1066.0,0.00024,5]
[340286081,1729008646417,-1000.0,0.00024,6]
[340286082,1729008646426,-1215.0,0.00024,5]
[340286083,1729008646435,-248.0,0.0002409,2]
[340286084,1729008646444,-202.0,0.0002415,2]
[340286085,1729008646453,-229.0,0.0002415,2]
[340286086,1729008646462,-1000.0,0.000242,2]
[340286087,1729008646471,-600.0,0.00024452,2]
[340286088,1729008646481,-500.0,0.00024452,2]
[340286089,1729008646490,-500.0,0.00024452,2]
[340286090,1729008646499,-140027.25783548,0.00024463,6]
[340286091,1729008646511,-1414.13668,0.00024463,6]
[340286092,1729008647338,-10903.20915914,0.00024463,6]
[340286093,1729008647349,-13243.9416,0.00024463,6]
[340286094,1729008647360,-477.85701832,0.00024463,6]
[340286095,1729008647371,-19951.36263163,0.00024463,6]
[340286096,1729008647382,-2144.37888385,0.00024463,6]
[340286097,1729008647393,-1000.0,0.00024463,6]
[340286098,1729008647403,-581.0996,0.00024463,6]
[340286099,1729008647414,-575.61,0.00024463,6]
[340286100,1729008647425,-782.53154917,0.00024463,6]
[340286101,1729008647436,-276.73994888,0.00024463,6]
[340286102,1729008647448,-616.0766574,0.00024463,6]
[340286103,1729008647459,-600.5,0.00024463,6]
[340286104,1729008647487,450.0,0.00040027,30]
[340286105,1729008647515,1000.0,0.00040027,30]
[340286106,1729008647527,-360.53268373,0.00024463,6]
[340286107,1729008647539,-572.13343351,0.00024463,6]
[340286108,1729008647550,-291.93805148,0.00024463,6]
[340286109,1729008647562,-302.46205091,0.00024463,6]
[340286110,1729008647619,-8255.6722165,0.00024463,6]
[340286111,1729008647629,-574.2,0.00024463,6]
[340286112,1729008647638,-1460.82,0.00024469,6]
[340286113,1729008647647,-23911.69,0.00024469,6]
[340286114,1729008647656,-4926.23,0.00024469,6]
[340286115,1729008647665,-28006.81,0.00024469,6]
[340286116,1729008647675,-2110.0,0.000245,2]
[340286117,1729008647684,-5000.0,0.000245,2]
[340286118,1729008647693,-4000.0,0.000245,3]
[340286119,1729008647703,-248.0,0.0002455,2]
[340286120,1729008647712,-216.0,0.0002457,2]
[340286121,1729008647721,-202.0,0.0002457,2]
[340286122,1729008647730,-229.0,0.0002457,2]
[340286123,1729008647740,-609.15884492,0.00024625,2]
[340286124,1729008647919,-375.0,0.00024657,2]
[340286125,1729008647933,-1000.0,0.00024658,2]
[340286126,1729008647943,-1000.0,0.00024658,2]
[340286127,1729008647953,-1000.0,0.00024658,2]
[340286128,1729008647964,-1000.0,0.00024658,2]
[340286129,1729008647974,-1000.0,0.00024658,2]
[340286130,1729008647984,-1000.0,0.00024658,2]
[340286131,1729008647993,-1000.0,0.00024658,2]
[340286132,1729008648003,-1000.0,0.00024658,2]
[340286133,1729008648012,-1000.0,0.00024658,2]
[340286134,1729008648022,-1000.0,0.00024658,2]
[340286135,1729008648031,-1000.0,0.00024658,2]
[340286136,1729008648041,-1000.0,0.00024658,2]
[340286137,1729008648051,-1000.0,0.00024658,2]
[340286138,1729008648062,-1000.0,0.00024658,2]
[340286139,1729008648072,-1000.0,0.00024658,2]
[340286140,1729008648082,-1000.0,0.00024658,2]
[340286141,1729008648091,-1000.0,0.00024658,2]
[340286142,1729008648101,-1142.0,0.00024658,2]
[340286143,1729008648111,-500.0,0.00024658,7]
[340286144,1729008648120,-34503.258,0.00024658,2]
[340286145,1729008648130,-216.69138456,0.000247,2]
[340286146,1729008648140,-150.0,0.00024741,2]
[340286147,1729008648150,-1500.0,0.00024741,2]
[340286148,1729008648160,-150.0,0.00024746,2]
[340286149,1729008648169,-150.0,0.00024769,2]
[340286150,1729008648179,-266.5,0.000248,7]
[340286151,1729008648189,-150.0,0.00024813,2]
[340286152,1729008648199,-150.0,0.00024818,2]
[340286153,1729008648208,-150.0,0.00024823,2]
[340286154,1729008648219,-150.0,0.00024825,2]
[340286155,1729008648228,-150.0,0.00024829,2]
[340286156,1729008648238,-150.0,0.0002483,2]
[340286157,1729008648247,-1031.0015014,0.00024831,2]
[340286158,1729008648257,-159.99735622,0.00024831,2]
[340286159,1729008648266,-150.0,0.00024832,2]
[340286160,1729008648276,-150.0,0.00024839,2]
[340286161,1729008648285,-150.0,0.0002484,2]
[340286162,1729008648295,-150.0,0.00024843,2]
[340286163,1729008648304,-150.0,0.00024857,2]
[340286164,1729008648315,-1031.0015014,0.00024866,2]
[340286165,1729008648324,-150.0,0.00024871,2]
[340286166,1729008648333,-500.0,0.00024873,2]
[340286167,1729008648343,-150.0,0.00024897,2]
[340286168,1729008648353,-3728.69,0.00024899,2]
[340286169,1729008648362,-4717.2756085,0.000249,2]
[340286170,1729008648372,-500.0,0.000249,2]
[340286171,1729008648381,-789.830356,0.000249,7]
[340286172,1729008648390,-789.830356,0.000249,7]
[340286173,1729008648399,-702.51706,0.000249,7]
[340286174,1729008648409,-504.151906,0.000249,7]
[340286175,1729008648419,-504.151906,0.000249,7]
[340286176,1729008648428,-151.942645,0.000249,7]
[340286177,1729008648438,-510.728681,0.000249,7]
[340286178,1729008648447,-510.728681,0.000249,7]
[340286179,1729008648456,-151.0,0.000249,7]